bitfinex-derivatives/quotes_SOLF0:USTF0_20250831
["timestamp","ask_amount","ask_price","bid_price","bid_amount"]
[1756632678273,100.99311043,205.12,205.08,4.62739775]
[1756632678470,100.99311043,205.12,205.1,7.23]
[1756632678670,0.03311043,205.12,205.11,11.85739775]
[1756632679074,0.03311043,205.12,205.11,11.85609499]
[1756632688989,0.03311043,205.12,205.11,11.80617429]
[1756632689886,2.35285882,205.17,205.11,4.57617429]
[1756632690079,74.84,205.19,205.13,7.23]
[1756632690387,74.84,205.19,205.15,7.23]
[1756632690583,74.84,205.19,205.16,11.80617429]
[1756632690887,74.84,205.19,205.17,4.57617429]
[1756632691089,74.84,205.19,205.08,7.23]
[1756632691290,74.84,205.19,205.15,0.03159731]
[1756632691490,75.15,205.19,205.16,11.80519481]
[1756632691787,75.15,205.19,205.17,4.57519481]
[1756632691978,75.15,205.19,205.16,7.23]
[1756632692179,75.15,205.19,205.15,0.03159731]
[1756632692180,328.7085011,205.23,205.17,11.80461735]
[1756632692383,2.35285882,205.26,205.19,7.23]
[1756632692690,2.35285882,205.26,205.2,4.57461735]
[1756632692985,2.35285882,205.26,205.19,7.23]
[1756632692986,2.35285882,205.26,205.21,4.57461735]
[1756632693185,2.35285882,205.26,205.22,4.57461735]
[1756632693380,0.31,205.25,205.21,0.03215578]
[1756632693587,0.31,205.25,205.22,4.57225242]
[1756632693788,0.31,205.25,205.21,0.03215578]
[1756632693987,2.66285882,205.27,205.23,7.23]
[1756632694390,2.66285882,205.27,205.21,0.03215578]
[1756632694592,2.66285882,205.27,205.23,7.23]
[1756632694792,2.66285882,205.27,205.22,7.23]
[1756632695090,2.66285882,205.27,205.21,0.03215578]
[1756632695291,2.66285882,205.27,205.23,7.23]
[1756632695688,2.35285882,205.27,205.23,7.23]
[1756632695893,0.31,205.26,205.21,0.03215578]
[1756632696089,2.35285882,205.27,205.22,4.56363446]
[1756632696294,0.31,205.26,205.21,0.03215578]
[1756632696488,0.31,205.26,205.22,4.56363446]
[1756632696690,0.31,205.26,205.21,0.03215578]
[1756632696890,0.31,205.26,205.23,7.23]
[1756632699096,0.31,205.26,205.21,7.46215578]
[1756632699291,0.31,205.26,205.22,11.99704522]
[1756632699493,0.31,205.26,205.22,7.43]
[1756632699696,0.31,205.26,205.21,0.03215578]
[1756632699994,121.19285882,205.28,205.22,11.99704522]
[1756632700197,0.32,205.27,205.23,11.99704522]
[1756632700491,121.19285882,205.28,205.21,0.03215578]
[1756632700700,118.84,205.28,205.22,11.99887324]
[1756632700900,0.32,205.27,205.23,11.99887324]
[1756632701199,0.32,205.27,205.24,4.56887324]
[1756632701395,0.32,205.27,205.25,4.56887324]
[1756632701588,0.32,205.27,205.22,7.43]
[1756632701793,0.32,205.27,205.21,0.03215578]
[1756632701794,0.32,205.27,205.24,7.43]
[1756632701990,0.32,205.26,205.21,0.03215578]
[1756632702192,118.84,205.28,205.21,0.03215578]
[1756632702193,2.35285882,205.24,205.21,0.03215578]
[1756632702392,0.32,205.22,205.21,0.03215578]
[1756632702592,0.32,205.22,205.21,4.6074233]
[1756632705698,0.32,205.21,205.12,7.43]
[1756632705902,0.32,205.21,205.07,4.07393881]
[1756632705903,2.35285882,205.17,205.07,7.43]
[1756632707004,0.03185851,205.14,205.07,7.43]
[1756632712707,2.38471733,205.14,205.07,7.43]
[1756632714109,0.03185851,205.14,205.07,7.43]
[1756632717706,0.03185851,205.14,205.08,4.52235933]
[1756632717911,0.03185851,205.14,205.1,7.43]
[1756632718216,0.03185851,205.14,205.11,11.95235933]
[1756632718406,0.03185851,205.14,205.12,4.52235933]
[1756632718611,0.03185851,205.14,205.13,4.52235933]
[1756632720814,0.03185851,205.14,205.13,4.52316633]
[1756632721011,0.35185851,205.14,205.13,4.52278432]
[1756632721510,0.03185851,205.14,205.13,4.52278432]
[1756632721709,0.03185851,205.14,205.13,11.95278432]
[1756632724520,2.35285882,205.22,205.14,7.43]
[1756632724713,327.56,205.25,205.16,7.43]
[1756632724919,446.8,205.25,205.18,7.43]
[1756632725118,446.8,205.25,205.19,4.52278432]
[1756632725321,447.15,205.25,205.2,11.95278432]
[1756632725620,447.15,205.25,205.21,4.52278432]
[1756632725819,446.8,205.25,205.22,4.52278432]
[1756632726019,0.35,205.24,205.23,4.52278432]
[1756632726516,0.83,205.24,205.23,4.52278432]
[1756632727020,0.83,205.24,205.2,0.03322234]
[1756632727220,2.35285882,205.21,205.2,0.03322234]
[1756632727522,2.70285882,205.21,205.2,0.03322234]
[1756632729824,3.18285882,205.21,205.2,0.03322234]
[1756632731726,3.18285882,205.21,205.13,7.43]
[1756632731920,2.35285882,205.18,205.09,7.67]
[1756632733022,0.03736851,205.16,205.09,7.67]
[1756632738832,0.03736851,205.16,205.1,4.57581343]
[1756632739038,0.03736851,205.16,205.12,7.67]
[1756632739226,0.03736851,205.16,205.14,7.67]
[1756632739423,0.03736851,205.16,205.15,12.24581343]
[1756632741427,0.03736851,205.16,205.15,7.67]
[1756632741722,0.03736851,205.16,205.15,12.24592301]
[1756632745134,2.35285882,205.23,205.16,7.67]
[1756632745135,119.12,205.23,205.16,7.67]
[1756632745433,119.12,205.23,205.17,4.57592301]
[1756632745630,119.48,205.23,205.19,7.67]
[1756632745835,119.48,205.23,205.2,4.57592301]
[1756632746135,119.12,205.23,205.21,4.57592301]
[1756632746331,0.36,205.22,205.19,7.70663716]
[1756632746629,0.36,205.22,205.2,4.57862188]
[1756632746825,0.36,205.22,205.21,4.57862188]
[1756632747738,119.12,205.23,205.21,4.57862188]
[1756632747937,119.12,205.23,205.22,4.57862188]
[1756632748338,119.48,205.23,205.22,4.57862188]
[1756632748535,327.56,205.25,205.22,4.57862188]
[1756632748732,119.06,205.24,205.23,4.56380126]
[1756632750235,119.42,205.24,205.23,4.56380126]
[1756632752135,119.42,205.24,205.19,0.03663716]
[1756632752136,119.9,205.24,205.19,0.03663716]
[1756632752335,2.71285882,205.2,205.19,0.03663716]
[1756632752532,121.87285882,205.2,205.12,7.67]
[1756632761551,0.39,205.19,205.12,7.67]
[1756632761754,121.51285882,205.2,205.12,7.67]
[1756632761951,0.39,205.19,205.12,7.67]
[1756632762448,0.03577836,205.18,205.09,4.08418341]
[1756632762649,0.39,205.13,205.07,7.36]
[1756632762854,119.32,205.12,205.06,7.36]
[1756632763454,0.03143114,205.11,205.06,7.36]
[1756632763655,2.38428996,205.11,205.06,7.36]
[1756632763854,0.39,205.1,205.06,7.36]
[1756632764155,2.38428996,205.11,205.07,4.50706483]
[1756632764351,0.03143114,205.11,205.08,4.50706483]
[1756632764556,0.39,205.08,204.99,7.36]
[1756632764755,0.39,205.08,204.93,2.35285882]
[1756632764756,2.74285882,205.05,205.01,7.36]
[1756632764956,2.74285882,205.05,205.02,4.50974012]
[1756632765153,2.74285882,205.05,205.03,4.50974012]
[1756632765347,2.77994246,205.05,205.04,4.50974012]
[1756632769361,0.03708364,205.05,205.04,11.86974012]
[1756632773860,0.03708364,205.05,205.04,11.84909626]
[1756632774157,0.39,205.14,205.05,7.36]
[1756632774358,16.15285882,205.13,205.06,4.48909626]
[1756632774555,16.15285882,205.13,205.07,4.48909626]
[1756632774760,16.15285882,205.13,205.08,4.48909626]
[1756632775060,0.42,205.12,205.09,4.48909626]
[1756632775263,0.42,205.12,205.08,7.36]
[1756632775453,0.42,205.12,205.09,4.48638616]
[1756632775652,0.42,205.12,205.08,7.39593422]
[1756632775852,0.42,205.12,205.09,4.48891599]
[1756632776160,0.42,205.12,205.08,7.39593422]
[1756632776460,0.42,205.12,205.09,4.48864083]
[1756632776652,0.42,205.12,205.08,7.39593422]
[1756632776852,5.46084985,205.22,205.1,7.36]
[1756632777062,335.75127478,205.25,205.11,4.48712867]
[1756632777063,2.77285882,205.19,205.11,4.48712867]
[1756632777264,2.77285882,205.19,205.12,4.48712867]
[1756632777452,0.42,205.15,205.04,7.36]
[1756632777654,2.77285882,205.13,205.05,4.4873464]
[1756632777859,21.07285882,205.13,205.06,4.4873464]
[1756632778167,21.07285882,205.13,205.07,4.524223]
[1756632778366,20.65285882,205.13,205.08,4.4873464]
[1756632778568,0.42,205.12,205.09,4.4873464]
[1756632778762,20.65285882,205.13,205.1,4.4873464]
[1756632779066,0.42,205.18,205.08,7.36]
[1756632779259,0.42,205.18,205.12,7.36]
[1756632779260,14.74,205.18,205.12,7.36]
[1756632779561,0.42,205.17,205.13,4.48744124]
[1756632779768,0.42,205.17,205.13,0.0352002]
[1756632780167,2.35285882,205.16,205.13,0.0352002]
[1756632780363,0.42,205.14,205.13,0.0352002]
[1756632784269,2.77285882,205.16,205.13,0.0352002]
[1756632784469,0.42,205.15,205.13,0.0352002]
[1756632784669,2.35285882,205.16,205.13,7.3952002]
[1756632785471,0.42,205.15,205.13,0.0352002]
[1756632785672,0.42,205.14,205.13,0.0352002]
[1756632786066,2.77285882,205.16,205.13,0.0352002]
[1756632787674,2.35285882,205.16,205.13,7.5852002]
[1756632787874,2.35285882,205.16,205.14,7.55]
[1756632790973,2.35285882,205.16,205.13,0.0352002]
[1756632791176,0.43,205.15,205.13,0.0352002]
[1756632794285,0.43,205.15,205.14,4.48950152]
[1756632795090,0.43,205.14,205.06,7.55]
[1756632795289,2.35285882,205.1,205.0,7.55]
[1756632795484,2.35285882,205.1,205.01,7.55]
[1756632796588,0.03188905,205.08,205.01,7.55]
[1756632800879,0.43,205.04,205.01,7.55]
[1756632801087,2.78285882,205.06,205.01,7.55]
[1756632801585,2.78285882,205.06,204.95,7.55]
[1756632801791,2.35285882,205.06,204.95,7.55]
[1756632802292,0.03689188,205.03,204.95,7.55]
[1756632803284,2.35285882,205.0,204.93,7.55]
[1756632803481,0.44,204.99,204.93,7.55]
[1756632803684,2.35285882,205.0,204.93,7.55]
[1756632804085,0.03221426,204.98,204.93,7.55]
[1756632806094,17.74,205.04,204.94,7.55]
[1756632806589,0.47,205.02,204.94,7.55]
[1756632807688,2.82285882,205.0,204.94,7.55]
[1756632815796,0.47,205.0,204.94,7.55]
[1756632816096,2.82285882,205.0,204.94,7.55]
[1756632816896,17.74,205.04,204.94,7.55]
[1756632817101,2.35285882,205.03,204.94,7.55]
[1756632817493,0.47,205.02,204.94,7.55]
[1756632818796,2.35285882,205.0,204.94,7.55]
[1756632825405,2.83285882,205.0,204.94,7.55]
[1756632825606,0.48,204.96,204.93,0.03631201]
[1756632826003,2.35285882,204.97,204.93,0.03631201]
[1756632826204,0.48,204.96,204.93,0.03631201]
[1756632826406,2.35285882,204.97,204.93,0.03631201]
[1756632826606,0.48,204.96,204.93,0.03631201]
[1756632826808,17.62,204.96,204.93,0.03631201]
[1756632827004,0.48,204.95,204.93,0.03631201]
[1756632828706,17.62,204.96,204.93,0.03631201]
[1756632828905,17.62,204.96,204.93,7.71631201]
[1756632829608,18.1,204.96,204.93,7.71631201]
[1756632829907,18.1,204.96,204.93,0.03631201]
[1756632830211,0.48,204.95,204.93,0.03631201]
[1756632831112,28.55285882,204.97,204.94,7.68]
[1756632831409,0.48,204.96,204.93,0.03631201]
[1756632832510,28.55285882,204.97,204.93,0.03631201]
[1756632832707,0.48,204.96,204.93,0.03631201]
[1756632833204,2.83285882,204.96,204.93,0.03631201]
[1756632833815,2.35285882,204.96,204.93,0.03631201]
[1756632834010,2.35285882,204.96,204.94,7.68]
[1756632834915,2.35285882,204.98,204.93,0.03631201]
[1756632835116,335.91127478,205.11,204.93,0.03631201]
[1756632835117,18.8,204.99,204.93,0.03631201]
[1756632835408,35.28,204.99,204.94,7.68]
[1756632835613,35.28,204.99,204.93,0.03631201]
[1756632835614,35.28,204.99,204.87,2.35285882]
[1756632835816,35.28,204.99,204.88,7.68]
[1756632836017,35.28,204.99,204.94,0.03243116]
[1756632836214,35.28,204.99,204.89,7.68]
[1756632836715,35.76,204.99,204.95,7.68]
[1756632837314,0.48,205.07,204.95,7.68]
[1756632837519,50.68,205.0,204.94,7.71441884]
[1756632837821,65.32,205.01,204.94,7.68]
[1756632838117,65.32,205.01,204.95,0.03521682]
[1756632838510,0.48,205.03,204.96,7.68]
[1756632838711,14.58,205.04,204.96,7.68]
[1756632839619,14.58,205.04,204.98,0.03640278]
[1756632840210,0.48,205.1,204.99,7.68]
[1756632840418,119.68,205.09,204.99,7.68]
[1756632840921,119.68,205.09,205.02,0.03687463]
[1756632841222,0.48,205.08,205.02,0.03687463]
[1756632842117,119.66,205.09,205.03,7.68]
[1756632843125,120.14,205.09,205.03,7.68]
[1756632854325,0.48,205.09,205.03,7.68]
[1756632854623,327.72,205.11,205.03,7.68]
[1756632857327,119.44,205.12,205.03,7.68]
[1756632863735,2.35285882,205.16,205.06,7.31]
[1756632863935,333.24084985,205.23,205.02,0.03687463]
[1756632863936,0.46,205.17,205.09,7.31]
[1756632864538,0.46,205.17,205.11,0.03705818]
[1756632881452,0.46,205.17,205.11,7.32705818]
[1756632887959,0.44,205.2,205.13,7.29]
[1756632888760,0.44,205.2,205.14,0.03410011]
[1756632888959,0.44,205.24,205.15,9.64285882]
[1756632889258,0.44,205.24,205.16,7.29]
[1756632889461,0.44,205.24,205.19,1.50464834]
[1756632889961,1.50464834,205.25,205.19,1.50464834]
[1756632890160,0.44,205.24,205.19,1.50464834]
[1756632890359,1.50464834,205.25,205.19,1.54167316]
[1756632890957,1.94464834,205.25,205.19,1.54167316]
[1756632891262,0.44,205.25,205.19,0.03702482]
[1756632900674,11.8,205.28,205.2,7.29]
[1756632900968,11.8,205.28,205.19,0.03702482]
[1756632900969,11.8,205.28,205.22,7.29]
[1756632902266,11.8,205.28,205.22,9.64097683]
[1756632903167,11.8,205.28,205.22,7.29]
[1756632903569,0.44,205.27,205.19,0.03702482]
[1756632903965,0.44,205.27,205.19,7.32702482]
[1756632904374,0.44,205.27,205.19,9.67800165]
[1756632904573,0.44,205.27,205.19,2.38800165]
[1756632904774,0.44,205.27,205.2,7.29]
[1756632905064,0.44,205.31,205.2,7.29]
[1756632905873,0.44,205.31,205.24,7.29]
[1756632907177,0.44,205.31,205.23,0.03156769]
[1756632913177,0.45,205.28,205.23,0.03156769]
[1756632917274,0.45,205.26,205.23,7.64156769]
[1756632918076,0.45,205.28,205.23,0.03156769]
[1756632918272,42.61097683,205.29,205.23,0.03156769]
[1756632918476,0.45,205.28,205.23,0.03156769]
[1756632919280,0.45,205.27,205.23,0.03156769]
[1756632919777,0.45,205.28,205.23,0.03156769]
[1756632919981,42.61097683,205.29,205.23,0.03156769]
[1756632920278,0.45,205.28,205.23,0.03156769]
[1756632921283,0.45,205.27,205.23,0.03156769]
[1756632921579,42.61097683,205.29,205.23,0.03156769]
[1756632921982,0.45,205.28,205.23,0.03156769]
[1756632922181,2.35097683,205.29,205.23,0.03156769]
[1756632922387,65.12097683,205.29,205.23,0.03156769]
[1756632922984,2.80097683,205.29,205.23,0.03156769]
[1756632923184,80.24097683,205.29,205.23,0.03156769]
[1756632923785,0.45,205.29,205.23,0.03156769]
[1756632924084,0.46,205.29,205.24,7.61]
[1756632924684,0.46,205.29,205.23,0.03156769]
[1756632924983,119.0,205.3,205.24,4.46742821]
[1756632925187,0.46,205.29,205.25,4.46742821]
[1756632925379,119.0,205.3,205.23,0.03156769]
[1756632925380,119.0,205.3,205.26,4.46742821]
[1756632925575,0.46,205.29,205.27,4.46742821]
[1756632925878,0.46,205.29,205.28,4.46742821]
[1756632928486,0.46,205.29,205.28,4.46794324]
[1756632932084,0.46,205.29,205.28,4.47165706]
[1756632933781,2.35097683,205.31,205.28,4.47165706]
[1756632933977,2.35097683,205.31,205.3,7.61]
[1756632933978,118.98,205.31,205.3,7.61]
[1756632934184,118.98,205.31,205.3,12.08165706]
[1756632938291,118.98,205.31,205.3,4.47165706]
[1756632938489,119.42,205.31,205.3,4.47165706]
[1756632938890,118.98,205.31,205.3,4.47165706]
[1756632939089,119.42,205.31,205.3,4.47165706]
[1756632940394,119.9,205.31,205.28,0.03592471]
[1756632940692,119.9,205.31,205.2,7.87]
[1756632940693,0.44,205.28,205.2,7.87]
[1756632941083,2.35097683,205.29,205.2,7.87]
[1756632941288,2.79097683,205.26,205.2,7.87]
[1756632941489,118.96,205.25,205.2,7.87]
[1756632941994,118.99257,205.25,205.19,7.87]
[1756632942195,118.99257,205.25,205.19,11.95418341]
[1756632942398,118.99257,205.25,205.2,7.87]
[1756632943292,118.99257,205.25,205.18,4.08418341]
[1756632943493,118.99257,205.25,205.19,7.87]
[1756632945797,118.99257,205.25,205.19,11.95418341]
[1756632946097,118.99257,205.25,205.19,4.08418341]
[1756632946298,0.03257,205.25,205.2,7.87]
[1756632946497,0.03257,205.25,205.22,7.87]
[1756632947297,0.03257,205.25,205.2,4.08418341]
[1756632948002,0.03257,205.25,205.21,11.95418341]
[1756632948194,0.03257,205.25,205.22,7.87]
[1756632948499,0.03257,205.25,205.21,4.08418341]
[1756632948899,0.03257,205.25,205.22,7.87]
[1756632949306,0.03257,205.25,205.21,4.08418341]
[1756632949502,0.03257,205.25,205.22,7.87]
[1756632950100,0.03257,205.25,205.21,4.08418341]
[1756632950903,0.03257,205.25,205.22,7.87]
[1756632951508,0.03257,205.25,205.21,4.08418341]
[1756632952002,0.03257,205.25,205.22,7.87]
[1756632952207,0.03257,205.25,205.21,4.08418341]
[1756632952408,0.03257,205.25,205.22,7.87]
[1756632952798,0.03257,205.25,205.21,4.08418341]
[1756632953001,0.03257,205.25,205.22,7.87]
[1756632953204,0.03257,205.25,205.23,7.87]
[1756632953605,0.03257,205.25,205.22,4.08418341]
[1756632953911,0.03257,205.25,205.23,7.87]
[1756632955309,0.03257,205.25,205.22,4.08418341]
[1756632955809,0.03257,205.25,205.23,7.87]
[1756632956309,0.03257,205.25,205.22,4.08418341]
[1756632956504,0.03257,205.25,205.23,7.87]
[1756632957405,0.03257,205.25,205.22,4.08418341]
[1756632958000,0.03257,205.25,205.23,7.87]
[1756632958413,0.03257,205.25,205.22,4.08418341]
[1756632958711,0.03257,205.25,205.23,7.87]
[1756632959107,0.03257,205.25,205.22,4.08418341]
[1756632959412,0.03257,205.25,205.23,7.87]
[1756632959912,0.03257,205.25,205.22,4.08418341]
[1756632960413,0.03257,205.25,205.23,7.87]
[1756632960608,0.03257,205.25,205.23,11.95418341]
[1756632960912,42.33097683,205.32,205.24,11.95418341]
[1756632960913,0.44,205.32,205.24,11.95418341]
[1756632961105,0.44,205.32,205.25,7.87]
[1756632962511,2.35097683,205.32,205.26,0.03318838]
[1756632962915,0.47,205.31,205.26,0.03318838]
[1756632963114,2.35097683,205.32,205.26,0.03318838]
[1756632964211,0.47,205.31,205.26,0.03318838]
[1756632964416,68.16,205.32,205.26,7.90318838]
[1756632965513,68.63,205.32,205.26,7.90318838]
[1756632967509,0.47,205.32,205.26,7.90318838]
[1756632972523,76.32,205.34,205.26,7.90318838]
[1756632972719,76.79,205.34,205.26,7.90318838]
[1756632973723,0.47,205.34,205.26,7.90318838]
[1756632973924,119.39,205.34,205.26,7.90318838]
[1756632974722,0.47,205.34,205.26,7.90318838]
[1756632975024,118.92,205.33,205.26,7.90318838]
[1756632978325,0.47,205.32,205.26,7.90318838]
[1756632981629,118.92,205.33,205.26,7.90318838]
[1756632986025,119.41,205.33,205.26,7.90318838]
[1756632987836,118.92,205.33,205.26,7.90318838]
[1756632988037,0.49,205.32,205.26,7.90318838]
[1756632988636,121.27097683,205.33,205.26,0.03318838]
[1756632988834,2.35097683,205.3,205.26,0.03318838]
[1756632989338,0.49,205.29,205.26,0.03318838]
[1756632989533,0.49,205.37,205.26,7.36318838]
[1756632989738,0.49,205.33,205.26,7.36318838]
[1756632992141,2.35097683,205.34,205.26,7.36318838]
[1756632992335,2.35097683,205.31,205.26,0.03318838]
[1756632992536,0.49,205.28,205.26,0.03318838]
[1756632993439,118.9,205.3,205.26,0.03318838]
[1756632993637,0.49,205.28,205.26,0.03318838]
[1756632993841,0.49,205.29,205.26,0.03318838]
[1756632994041,118.9,205.3,205.26,0.03318838]
[1756632994235,0.49,205.29,205.26,0.03318838]
[1756632995138,0.49,205.28,205.26,0.03318838]
[1756632995539,0.49,205.29,205.26,0.03318838]
[1756632995739,0.49,205.28,205.26,0.03318838]
[1756632996035,0.49,205.28,205.26,7.36318838]
[1756632997045,0.49,205.29,205.26,0.03318838]
[1756632997246,0.49,205.28,205.26,0.03318838]
[1756632997440,2.35097683,205.28,205.26,0.03318838]
[1756632997640,0.49,205.27,205.26,0.03318838]
[1756632999937,2.81097683,205.29,205.26,0.03318838]
[1756633000144,19.52,205.28,205.26,0.03318838]
[1756633000344,2.35097683,205.29,205.26,0.03318838]
[1756633000541,0.46,205.27,205.26,0.03318838]
[1756633001047,2.81097683,205.29,205.26,0.03318838]
[1756633001243,64.48,205.28,205.26,7.36318838]
[1756633001441,0.46,205.29,205.26,7.36318838]
[1756633001644,80.78,205.29,205.26,0.03318838]
[1756633003345,0.46,205.28,205.26,0.03318838]
[1756633007463,80.32,205.29,205.26,0.03318838]
[1756633007664,0.46,205.28,205.26,0.03318838]
[1756633007858,80.32,205.29,205.26,0.03318838]
[1756633008061,0.46,205.27,205.26,0.03318838]
[1756633009166,0.46,205.31,205.27,7.33]
[1756633009360,17.34,205.33,205.27,7.33]
[1756633009964,0.46,205.32,205.27,7.33]
[1756633010165,17.34,205.33,205.28,0.03157687]
[1756633010467,0.46,205.32,205.28,0.03157687]
[1756633010762,17.34,205.33,205.28,0.03157687]
[1756633010956,0.46,205.32,205.28,0.03157687]
[1756633011365,17.34,205.33,205.28,0.03157687]
[1756633011566,0.46,205.32,205.28,0.03157687]
[1756633011867,17.34,205.33,205.28,0.03157687]
[1756633012066,0.46,205.32,205.28,0.03157687]
[1756633012260,17.34,205.33,205.28,0.03157687]
[1756633012462,0.46,205.31,205.28,0.03157687]
[1756633012662,0.46,205.32,205.28,0.03157687]
[1756633012969,0.46,205.31,205.28,0.03157687]
[1756633013262,17.34,205.33,205.28,0.03157687]
[1756633013567,0.46,205.31,205.28,7.36157687]
[1756633014162,17.34,205.33,205.28,7.36157687]
[1756633014557,0.46,205.32,205.29,7.33]
[1756633014759,17.34,205.33,205.29,7.33]
[1756633014963,17.34,205.33,205.28,0.03157687]
[1756633015163,17.34,205.33,205.28,7.36157687]
[1756633016870,0.46,205.37,205.28,7.36157687]
[1756633017072,0.46,205.37,205.28,9.7125537]
[1756633017371,0.46,205.37,205.29,7.33]
[1756633017569,0.46,205.37,205.31,7.33]
[1756633017762,0.46,205.37,205.33,7.33]
[1756633017964,0.46,205.37,205.34,12.00173556]
[1756633018173,0.46,205.38,205.35,4.67173556]
[1756633018470,0.46,205.38,205.36,4.67173556]
[1756633018670,0.46,205.38,205.37,4.67173556]
[1756633022368,2.35097683,205.4,205.37,4.67173556]
[1756633022566,5.46084985,205.42,205.33,0.03665379]
[1756633022567,5.46084985,205.46,205.39,7.33]
[1756633022869,118.9,205.46,205.41,7.33]
[1756633023166,118.9,205.46,205.42,12.00173556]
[1756633023471,118.9,205.46,205.43,12.00173556]
[1756633023668,118.9,205.46,205.44,4.67173556]
[1756633023969,118.9,205.46,205.45,4.67173556]
[1756633024474,119.36,205.46,205.45,4.67173556]
[1756633026171,119.36,205.46,205.43,7.33]
[1756633026370,119.36,205.46,205.44,4.70890222]
[1756633026667,119.36,205.46,205.43,7.33]
[1756633027061,119.36,205.46,205.44,4.70764333]
[1756633027265,119.36,205.46,205.43,7.33]
[1756633027467,119.36,205.46,205.44,4.70579625]
[1756633027668,119.36,205.46,205.43,7.33]
[1756633027873,119.36,205.46,205.44,4.70618379]
[1756633028069,119.36,205.46,205.43,7.33]
[1756633028373,119.36,205.46,205.44,4.70618379]
[1756633028566,119.36,205.46,205.43,7.33]
[1756633028762,119.36,205.46,205.44,4.7045814]
[1756633028974,119.36,205.46,205.43,7.33]
[1756633029371,119.54,205.46,205.43,7.33]
[1756633029974,119.5,205.46,205.43,7.33]
[1756633031167,119.5,205.46,205.41,0.03304775]
[1756633031363,119.5,205.46,205.43,7.23]
[1756633031569,0.48,205.5,205.42,7.23]
[1756633031774,119.0,205.49,205.43,4.70458003]
[1756633032071,119.48,205.49,205.45,7.23]
[1756633032775,0.48,205.48,205.45,7.23]
[1756633033170,119.0,205.49,205.42,7.23]
[1756633033372,119.16,205.48,205.43,4.69974426]
[1756633033572,119.16,205.48,205.45,7.23]
[1756633033773,119.16,205.48,205.41,0.03304775]
[1756633033774,119.16,205.48,205.42,7.23]
[1756633033970,119.16,205.48,205.43,4.69930183]
[1756633034174,119.16,205.48,205.44,4.69930183]
[1756633034473,119.14,205.47,205.41,0.03304775]
[1756633034773,119.14,205.47,205.43,7.23]
[1756633034972,119.14,205.47,205.45,7.23]
[1756633035172,119.14,205.47,205.46,4.69778182]
[1756633037874,119.62,205.47,205.41,7.26304775]
[1756633038070,119.62,205.47,205.42,4.69118925]
[1756633038071,0.48,205.46,205.42,4.69118925]
[1756633038276,0.48,205.46,205.43,4.69118925]
[1756633038477,119.14,205.47,205.44,4.69118925]
[1756633038678,0.48,205.46,205.41,0.03304775]
[1756633038873,119.14,205.47,205.42,4.69138357]
[1756633039070,0.48,205.46,205.43,4.69138357]
[1756633039275,119.12,205.48,205.44,4.69138357]
[1756633039471,0.48,205.47,205.45,4.69138357]
[1756633039674,0.48,205.47,205.46,4.69138357]
[1756633039875,119.6,205.48,205.46,4.69138357]
[1756633040082,119.6,205.48,205.47,4.69138357]
[1756633040282,119.12,205.48,205.47,4.69138357]
[1756633040482,119.6,205.48,205.47,4.69138357]
[1756633043086,119.6,205.48,205.44,0.03135223]
[1756633043289,119.12,205.48,205.45,4.68785905]
[1756633043489,0.48,205.47,205.44,0.03135223]
[1756633043690,0.48,205.47,205.45,4.68856174]
[1756633043984,0.45,205.46,205.44,0.03135223]
[1756633044186,0.45,205.46,205.45,4.68856174]
[1756633044485,2.80097683,205.46,205.44,0.03135223]
[1756633044980,2.35097683,205.46,205.44,0.03135223]